fUST/lending_fUST_20250430
["ID","MTS","AMOUNT","RATE_DAILY","PERIOD"]
[359381175,1745964646832,-2287.98,0.00027945,2]
[359381176,1745964646841,-400.0,0.00027945,2]
[359381177,1745964646852,-426.73,0.00027945,2]
[359381178,1745964646863,-1058.95,0.00027945,2]
[359381179,1745964646872,-400.0,0.00027945,2]
[359381180,1745964646882,-3863.88,0.00027945,2]
[359381181,1745964646891,-1992.49,0.00027945,2]
[359381182,1745964646901,-1171.66,0.00027945,2]
[359381183,1745964646910,-1181.59,0.00027945,2]
[359381184,1745964646920,-5055.43,0.00027945,2]
[359381185,1745964646929,-400.0,0.00027945,2]
[359381186,1745964646938,-400.0,0.00027945,2]
[359381187,1745964646950,-530.7693396,0.00027949,4]
[359381188,1745964646960,-3183.19155206,0.00027969,7]
[359381189,1745964646969,-500.0,0.00027973,5]
[359381190,1745964646979,-500.0,0.00027973,5]
[359381191,1745964646989,-500.0,0.00027973,5]
[359381192,1745964646998,-257.0008805,0.00027973,5]
[359381193,1745964647007,-500.0,0.00027973,5]
[359381194,1745964647017,-500.0,0.00027973,5]
[359381195,1745964647028,-500.0,0.00027973,5]
[359381196,1745964647037,-500.46274838,0.00027973,3]
[359381197,1745964647047,-500.70145363,0.00027973,5]
[359381198,1745964647057,-500.0,0.00027973,5]
[359381199,1745964647066,-500.0,0.00027973,5]
[359381200,1745964647076,-500.0,0.00027973,5]
[359381201,1745964647085,-502.39372866,0.00027973,5]
[359381202,1745964647095,-500.0,0.00027973,5]
[359381203,1745964647105,-500.99068703,0.00027973,5]
[359381204,1745964647114,-500.0,0.00027973,5]
[359381205,1745964647126,-500.0,0.00027973,5]
[359381206,1745964647135,-160.0,0.00028,3]
[359381207,1745964647145,-2781.3,0.00028078,4]
[359381208,1745964647156,-2781.3,0.00028078,4]
[359381209,1745964647166,-2781.3,0.00028078,4]
[359381210,1745964647176,-2781.3,0.00028078,4]
[359381211,1745964647185,-2781.3,0.00028078,4]
[359381212,1745964647194,-2781.3,0.00028078,4]
[359381213,1745964647204,-151.0,0.00028078,7]
[359381214,1745964647214,-151.0,0.00028078,7]
[359381215,1745964647223,-151.0,0.00028078,7]
[359381216,1745964647234,-205.92473886,0.00028209,2]
[359381217,1745964647243,-168.40978071,0.00028218,10]
[359381218,1745964647253,-151.0,0.00028219,7]
[359381219,1745964647263,-155.044609,0.00028219,7]
[359381220,1745964647272,-151.201501,0.00028219,7]
[359381221,1745964647282,-151.0,0.00028219,7]
[359381222,1745964647291,-151.0,0.00028219,7]
[359381223,1745964647302,-400.0,0.00028219,2]
[359381224,1745964647312,-400.0,0.00028219,2]
[359381225,1745964647322,-151.0,0.00028219,7]
[359381226,1745964647332,-151.0,0.00028219,7]
[359381227,1745964647341,-467.88,0.00028219,2]
[359381228,1745964647351,-641.2,0.00028219,2]
[359381229,1745964647361,-190.538986,0.00028219,7]
[359381230,1745964647370,-190.538986,0.00028219,7]
[359381231,1745964647381,-814.39,0.00028219,2]
[359381232,1745964647393,-151.0,0.00028219,7]
[359381233,1745964647402,-400.0,0.00028219,2]
[359381234,1745964647411,-400.0,0.00028219,2]
[359381235,1745964647421,-400.0,0.00028219,2]
[359381236,1745964647431,-924.72,0.00028219,2]
[359381237,1745964647441,-400.0,0.00028219,2]
[359381238,1745964647451,-400.0,0.00028219,2]
[359381239,1745964647460,-300.0,0.00028219,2]
[359381240,1745964647470,-300.0,0.00028219,2]
[359381241,1745964647480,-400.0,0.00028219,2]
[359381242,1745964647490,-400.0,0.00028219,2]
[359381243,1745964647499,-400.0,0.00028219,2]
[359381244,1745964647509,-541.06,0.00028219,2]
[359381245,1745964647519,-400.0,0.00028219,2]
[359381246,1745964647528,-400.0,0.00028219,2]
[359381247,1745964647538,-400.0,0.00028219,2]
[359381248,1745964647547,-400.0,0.00028219,2]
[359381249,1745964647557,-400.0,0.00028219,2]
[359381250,1745964647566,-400.0,0.00028219,2]
[359381251,1745964647576,-456.92,0.00028219,2]
[359381252,1745964647585,-400.0,0.00028219,2]
[359381253,1745964647595,-400.0,0.00028219,2]
[359381254,1745964647606,-400.0,0.00028219,2]
[359381255,1745964647616,-400.0,0.00028219,2]
[359381256,1745964647628,-400.0,0.00028219,2]
[359381257,1745964647639,-245.52552531,0.00028219,2]
[359381258,1745964647650,-442.45,0.00028219,2]
[359381259,1745964647661,-400.0,0.00028219,2]
[359381260,1745964647670,-400.0,0.00028219,2]
[359381261,1745964647681,-1324.26,0.00028219,2]
[359381262,1745964647692,-765.36,0.00028219,2]
[359381263,1745964647701,-400.0,0.00028219,2]
[359381264,1745964647711,-400.0,0.00028219,2]
[359381265,1745964647722,-400.0,0.00028219,2]
[359381266,1745964647733,-400.0,0.00028219,2]
[359381267,1745964647743,-501.25,0.00028219,2]
[359381268,1745964647753,-2258.42,0.00028219,2]
[359381269,1745964647763,-491.62,0.00028219,2]
[359381270,1745964647773,-403.61,0.00028219,2]
[359381271,1745964647782,-151.0,0.00028219,7]
[359381272,1745964647792,-151.0,0.00028219,7]
[359381273,1745964647803,-400.0,0.00028219,2]
[359381274,1745964647814,-151.0,0.00028219,7]
[359381275,1745964647824,-400.0,0.00028219,2]
[359381276,1745964647835,-151.0,0.00028219,7]
[359381277,1745964647846,-151.0,0.00028219,7]
[359381278,1745964647856,-400.0,0.00028219,2]
[359381279,1745964647866,-400.0,0.00028219,2]
[359381280,1745964647875,-151.0,0.00028219,7]
[359381281,1745964647886,-151.0,0.00028219,7]
[359381282,1745964647896,-151.0,0.00028219,7]
[359381283,1745964647905,-151.0,0.00028219,7]
[359381284,1745964647915,-151.0,0.00028219,7]
[359381285,1745964647925,-172.141055,0.00028219,7]
[359381286,1745964647935,-400.0,0.00028219,2]
[359381287,1745964647945,-820.13,0.00028219,2]
[359381288,1745964647955,-941.89,0.00028219,2]
[359381289,1745964647965,-400.0,0.00028219,2]
[359381290,1745964647975,-400.0,0.00028219,2]
[359381291,1745964647984,-400.0,0.00028219,2]
[359381292,1745964647994,-541.68,0.00028219,2]
[359381293,1745964648005,-400.0,0.00028219,2]
[359381294,1745964648015,-1035.94,0.00028219,2]
[359381295,1745964648024,-151.0,0.00028219,7]
[359381296,1745964648034,-151.0,0.00028219,7]
[359381297,1745964648043,-151.0,0.00028219,7]
[359381298,1745964648054,-151.0,0.00028219,7]
[359381299,1745964648064,-430.86,0.00028219,2]
[359381300,1745964648073,-151.0,0.00028219,7]
[359381301,1745964648084,-151.0,0.00028219,7]
[359381302,1745964648093,-539.77,0.00028219,2]
[359381303,1745964648103,-466.18,0.00028219,2]
[359381304,1745964648112,-400.0,0.00028219,2]
[359381305,1745964648121,-972.2,0.00028219,2]
[359381306,1745964648131,-400.0,0.00028219,2]
[359381307,1745964648141,-151.0,0.00028219,7]
[359381308,1745964648150,-151.0,0.00028219,7]
[359381309,1745964648160,-400.0,0.00028219,2]
[359381310,1745964648171,-400.0,0.00028219,2]
[359381311,1745964648182,-495.34,0.00028219,2]
[359381312,1745964648191,-438.9,0.00028219,2]
[359381313,1745964648201,-674.73,0.00028219,2]
[359381314,1745964648211,-400.0,0.00028219,2]
[359381315,1745964648220,-400.0,0.00028219,2]
[359381316,1745964648229,-759.88,0.00028219,2]
[359381317,1745964648239,-801.75,0.00028219,2]
[359381318,1745964648249,-400.0,0.00028219,2]
[359381319,1745964648259,-151.0,0.00028219,7]
[359381320,1745964648269,-151.0,0.00028219,7]
[359381321,1745964648279,-657.56,0.00028219,2]
[359381322,1745964648289,-1136.94,0.00028219,2]
[359381323,1745964648299,-151.0,0.00028219,7]
[359381324,1745964648309,-151.0,0.00028219,7]
[359381325,1745964648319,-400.0,0.00028219,2]
[359381326,1745964648328,-151.0,0.00028219,7]
[359381327,1745964648337,-400.0,0.00028219,2]
[359381328,1745964648347,-400.0,0.00028219,2]
[359381329,1745964648357,-1601.9,0.00028219,2]
[359381330,1745964648367,-498.91,0.00028219,2]
[359381331,1745964648377,-1423.83,0.00028219,2]
[359381332,1745964648387,-400.0,0.00028219,2]
[359381333,1745964648399,-400.0,0.00028219,2]
[359381334,1745964648408,-400.0,0.00028219,2]
[359381335,1745964648418,-400.0,0.00028219,2]
[359381336,1745964648428,-1012.1,0.00028219,2]
[359381337,1745964648439,-400.0,0.00028219,2]
[359381338,1745964648449,-400.0,0.00028219,2]
[359381339,1745964648461,-417.21,0.00028219,2]
[359381340,1745964648471,-400.0,0.00028219,2]
[359381341,1745964648481,-400.0,0.00028219,2]
[359381342,1745964648491,-633.5,0.00028219,2]
[359381343,1745964648501,-400.0,0.00028219,2]
[359381344,1745964648511,-400.0,0.00028219,2]
[359381345,1745964648521,-400.0,0.00028219,2]
[359381346,1745964648531,-400.0,0.00028219,2]
[359381347,1745964648540,-400.0,0.00028219,2]
[359381348,1745964648549,-1151.14,0.00028219,2]
[359381349,1745964648559,-628.07,0.00028219,2]
[359381350,1745964648568,-2748.64,0.00028219,2]
[359381351,1745964648578,-3276.42,0.00028219,2]
[359381352,1745964648588,-1373.51,0.00028219,2]
[359381353,1745964648597,-400.0,0.00028219,2]
[359381354,1745964648606,-889.04,0.00028219,2]
[359381355,1745964648615,-400.0,0.00028219,2]
[359381356,1745964648625,-400.0,0.00028219,2]
[359381357,1745964648634,-1304.26,0.00028219,2]
[359381358,1745964648643,-400.0,0.00028219,2]
[359381359,1745964648653,-463.89,0.00028219,2]
[359381360,1745964648663,-400.0,0.00028219,2]
[359381361,1745964648672,-769.65,0.00028219,2]
[359381362,1745964648682,-400.0,0.00028219,2]
[359381363,1745964648691,-400.0,0.00028219,2]
[359381364,1745964648701,-635.03,0.00028219,2]
[359381365,1745964648710,-222.073716,0.00028219,2]
[359381366,1745964648720,-974.76,0.00028219,2]
[359381367,1745964648729,-514.76,0.00028219,2]
[359381368,1745964648738,-825.21,0.00028219,2]
[359381369,1745964648749,-400.0,0.00028219,2]
[359381370,1745964648759,-400.0,0.00028219,2]
[359381371,1745964648768,-400.0,0.00028219,2]
[359381372,1745964648777,-992.46,0.00028219,2]
[359381373,1745964648787,-1636.65,0.00028219,2]
[359381374,1745964648796,-689.98,0.00028219,2]
[359381375,1745964648805,-400.0,0.00028219,2]
[359381376,1745964648815,-1093.37,0.00028219,2]
[359381377,1745964648825,-850.14,0.00028219,2]
[359381378,1745964648835,-1686.22,0.00028219,2]
[359381379,1745964648844,-575.83,0.00028219,2]
[359381380,1745964648854,-400.0,0.00028219,2]
[359381381,1745964648864,-400.0,0.00028219,2]
[359381382,1745964648873,-400.0,0.00028219,2]
[359381383,1745964648883,-400.0,0.00028219,2]
[359381384,1745964648893,-2389.97,0.00028219,2]
[359381385,1745964648902,-816.44,0.00028219,2]
[359381386,1745964648911,-400.0,0.00028219,2]
[359381387,1745964648922,-400.0,0.00028219,2]
[359381388,1745964648932,-687.47,0.00028219,2]
[359381389,1745964648941,-605.96,0.00028219,2]
[359381390,1745964648950,-400.0,0.00028219,2]
[359381391,1745964648960,-196.48509824,0.00028219,2]
[359381392,1745964648969,-790.83,0.00028219,2]
[359381393,1745964648979,-400.0,0.00028219,2]
[359381394,1745964648989,-2863.42,0.00028219,2]
[359381395,1745964648999,-449.90994298,0.00028219,2]
[359381396,1745964649008,-400.0,0.00028219,2]
[359381397,1745964649018,-1912.8,0.00028219,2]
[359381398,1745964649027,-151.0,0.00028219,7]
[359381399,1745964649037,-151.0,0.00028219,7]
[359381400,1745964649046,-1255.28,0.00028219,2]
[359381401,1745964649056,-400.0,0.00028219,2]
[359381402,1745964649065,-1984.8,0.00028219,2]
[359381403,1745964649075,-400.0,0.00028219,2]
[359381404,1745964649085,-400.0,0.00028219,2]
[359381405,1745964649095,-400.0,0.00028219,2]
[359381406,1745964649105,-1984.9,0.00028219,2]
[359381407,1745964649115,-400.0,0.00028219,2]
[359381408,1745964649125,-400.0,0.00028219,2]
[359381409,1745964649246,-1048.55,0.00028219,2]
[359381410,1745964649257,-400.0,0.00028219,2]
[359381411,1745964649267,-810.59,0.00028219,2]
[359381412,1745964649276,-400.0,0.00028219,2]
[359381413,1745964649286,-1059.81,0.00028219,2]
[359381414,1745964649296,-1362.09,0.00028219,2]
[359381415,1745964649306,-400.0,0.00028219,2]
[359381416,1745964649316,-400.0,0.00028219,2]
[359381417,1745964649326,-2404.79,0.00028219,2]
[359381418,1745964649336,-588.59,0.00028219,2]
[359381419,1745964649346,-780.05,0.00028219,2]
[359381420,1745964649355,-992.82,0.00028219,2]
[359381421,1745964649365,-400.0,0.00028219,2]
[359381422,1745964649374,-486.81,0.00028219,2]
[359381423,1745964649385,-2287.98,0.00028219,2]
[359381424,1745964649397,-400.0,0.00028219,2]
[359381425,1745964649407,-426.73,0.00028219,2]
[359381426,1745964649417,-1058.95,0.00028219,2]
[359381427,1745964649427,-400.0,0.00028219,2]
[359381428,1745964649437,-3863.88,0.00028219,2]
[359381429,1745964649447,-1992.49,0.00028219,2]
[359381430,1745964649457,-1171.66,0.00028219,2]
[359381431,1745964649467,-1181.59,0.00028219,2]
[359381432,1745964649477,-5055.43,0.00028219,2]
[359381433,1745964649487,-400.0,0.00028219,2]
[359381434,1745964649497,-400.0,0.00028219,2]
[359381435,1745964649506,-500.0,0.00028273,5]
[359381436,1745964649516,-540.82924944,0.00028273,5]
[359381437,1745964649526,-500.0,0.00028273,5]
[359381438,1745964649536,-500.0,0.00028273,5]
[359381439,1745964649545,-500.0,0.00028273,5]
[359381440,1745964649558,-625.47714158,0.00028273,5]
[359381441,1745964649568,-160.0,0.00028348,7]
[359381442,1745964649578,-151.0,0.000284,17]
[359381443,1745964649588,-151.0,0.000284,18]
[359381444,1745964649598,-185.320093,0.00028422,2]
[359381445,1745964649608,-205.92473886,0.00028483,2]
[359381446,1745964649617,-1903.73312439,0.00028486,8]
[359381447,1745964649934,-1266.38,0.00027945,2]
[359381448,1745964649944,-280.40600054,0.00028219,2]
[359381449,1745964649955,-985.97399946,0.00028219,2]
[359381450,1745964649965,-1279.45842767,0.00028486,8]
[359381451,1745964649975,-151.0,0.00028493,7]
[359381452,1745964649985,-151.0,0.00028493,7]
[359381453,1745964649995,-151.0,0.00028493,7]
[359381454,1745964650005,-151.0,0.00028493,7]
[359381455,1745964650015,-151.0,0.00028493,7]
[359381456,1745964650026,-400.0,0.00028493,2]
[359381457,1745964650036,-534.42533266,0.00028493,2]
[359381458,1745964650045,-467.88,0.00028493,2]
[359381459,1745964650056,-641.2,0.00028493,2]
[359381460,1745964650066,-190.538986,0.00028493,7]
[359381461,1745964650076,-190.538986,0.00028493,7]
[359381462,1745964650086,-190.538986,0.00028493,7]
[359381463,1745964650096,-190.538986,0.00028493,7]
[359381464,1745964650106,-814.39,0.00028493,2]
[359381465,1745964650115,-400.0,0.00028493,2]
[359381466,1745964650125,-400.0,0.00028493,2]
[359381467,1745964650135,-400.0,0.00028493,2]
[359381468,1745964650148,-924.72,0.00028493,2]
[359381469,1745964650158,-400.0,0.00028493,2]
[359381470,1745964650168,-400.0,0.00028493,2]
[359381471,1745964650178,-400.0,0.00028493,2]
[359381472,1745964650188,-400.0,0.00028493,2]
[359381473,1745964650198,-400.0,0.00028493,2]
[359381474,1745964650208,-541.06,0.00028493,2]
[359381475,1745964650217,-400.0,0.00028493,2]
[359381476,1745964650227,-400.0,0.00028493,2]
[359381477,1745964650236,-400.0,0.00028493,2]
[359381478,1745964650246,-400.0,0.00028493,2]
[359381479,1745964650255,-400.0,0.00028493,2]
[359381480,1745964650265,-400.0,0.00028493,2]
[359381481,1745964650275,-456.92,0.00028493,2]
[359381482,1745964650285,-400.0,0.00028493,2]
[359381483,1745964650295,-400.0,0.00028493,2]
[359381484,1745964650306,-400.0,0.00028493,2]
[359381485,1745964650315,-400.0,0.00028493,2]
[359381486,1745964650325,-400.0,0.00028493,2]
[359381487,1745964650335,-442.45,0.00028493,2]
[359381488,1745964650344,-400.0,0.00028493,2]
[359381489,1745964650354,-400.0,0.00028493,2]
[359381490,1745964650363,-1324.26,0.00028493,2]
[359381491,1745964650373,-765.36,0.00028493,2]
[359381492,1745964650383,-400.0,0.00028493,2]
[359381493,1745964650396,-400.0,0.00028493,2]
[359381494,1745964650408,-400.0,0.00028493,2]
[359381495,1745964650417,-400.0,0.00028493,2]
[359381496,1745964650427,-501.25,0.00028493,2]
[359381497,1745964650438,-2258.42,0.00028493,2]
[359381498,1745964650447,-491.62,0.00028493,2]
[359381499,1745964650457,-403.61,0.00028493,2]
[359381500,1745964650467,-151.0,0.00028493,7]
[359381501,1745964650477,-151.0,0.00028493,7]
[359381502,1745964650487,-173.583724,0.00028493,7]
[359381503,1745964650496,-400.0,0.00028493,2]
[359381504,1745964650506,-400.0,0.00028493,2]
[359381505,1745964650515,-151.0,0.00028493,7]
[359381506,1745964650524,-400.0,0.00028493,2]
[359381507,1745964650534,-400.0,0.00028493,2]
[359381508,1745964650543,-151.0,0.00028493,7]
[359381509,1745964650553,-151.0,0.00028493,7]
[359381510,1745964650563,-400.0,0.00028493,2]
[359381511,1745964650572,-820.13,0.00028493,2]
[359381512,1745964650583,-941.89,0.00028493,2]
[359381513,1745964650594,-400.0,0.00028493,2]
[359381514,1745964650604,-400.0,0.00028493,2]
[359381515,1745964650613,-400.0,0.00028493,2]
[359381516,1745964650623,-541.68,0.00028493,2]
[359381517,1745964650633,-400.0,0.00028493,2]
[359381518,1745964650643,-1035.94,0.00028493,2]
[359381519,1745964650654,-151.0,0.00028493,7]
[359381520,1745964650663,-151.0,0.00028493,7]
[359381521,1745964650673,-430.86,0.00028493,2]
[359381522,1745964650682,-170.279168,0.00028493,7]
[359381523,1745964650693,-151.0,0.00028493,7]
[359381524,1745964650703,-151.0,0.00028493,7]
[359381525,1745964650713,-539.77,0.00028493,2]
[359381526,1745964650724,-466.18,0.00028493,2]
[359381527,1745964650734,-327.98068799,0.00028493,2]
[359381528,1745964650744,-972.2,0.00028493,2]
[359381529,1745964650757,-400.0,0.00028493,2]
[359381530,1745964650767,-151.0,0.00028493,7]
[359381531,1745964650777,-151.0,0.00028493,7]
[359381532,1745964650786,-400.0,0.00028493,2]
[359381533,1745964650796,-400.0,0.00028493,2]
[359381534,1745964650806,-495.34,0.00028493,2]
[359381535,1745964650815,-438.9,0.00028493,2]
[359381536,1745964650825,-674.73,0.00028493,2]
[359381537,1745964650835,-400.0,0.00028493,2]
[359381538,1745964650846,-400.0,0.00028493,2]
[359381539,1745964650855,-759.88,0.00028493,2]
[359381540,1745964650866,-801.75,0.00028493,2]
[359381541,1745964650875,-400.0,0.00028493,2]
[359381542,1745964650884,-151.0,0.00028493,7]
[359381543,1745964650894,-151.0,0.00028493,7]
[359381544,1745964650903,-657.56,0.00028493,2]
[359381545,1745964650912,-681.03025621,0.00028493,2]
[359381546,1745964651216,-151.0,0.00028493,7]
[359381547,1745964651239,-104.17430411,0.00028493,7]
[359381548,1745964651495,-400.0,0.00027397,2]
[359381549,1745964651506,-400.0,0.00027671,2]
[359381550,1745964651516,-400.0,0.00027945,2]
[359381551,1745964651527,-455.90974379,0.00028493,2]
[359381552,1745964651538,-400.0,0.00028493,2]
[359381553,1745964651548,-46.82569589,0.00028493,7]
[359381554,1745964651560,-400.0,0.00028493,2]
[359381555,1745964651569,-1601.9,0.00028493,2]
[359381556,1745964651579,-1108.98456031,0.00028493,2]
[359381557,1745964651668,-400.0,0.00028219,2]
[359381558,1745964651677,-314.84543969,0.00028493,2]
[359381559,1745964651687,-400.0,0.00028493,2]
[359381560,1745964651696,-122.58505583,0.00028493,2]
[359381561,1745964651707,-277.41494417,0.00028493,2]
[359381562,1745964651717,-417.04951751,0.00028493,2]
[359381563,1745964651727,-400.0,0.00028493,2]
[359381564,1745964651736,-1012.1,0.00028493,2]
[359381565,1745964651745,-400.0,0.00028493,2]
[359381566,1745964651754,-400.0,0.00028493,2]
[359381567,1745964651763,-417.21,0.00028493,2]
[359381568,1745964651772,-400.0,0.00028493,2]
[359381569,1745964651782,-400.0,0.00028493,2]
[359381570,1745964651791,-544.96649731,0.00028493,2]
[359381571,1745964651807,-88.53350269,0.00028493,2]
[359381572,1745964651817,-400.0,0.00028493,2]
[359381573,1745964651826,-400.0,0.00028493,2]
[359381574,1745964651836,-197.36185031,0.00028493,2]
[359381575,1745964652004,-182.50499873,0.00028493,2]
[359381576,1745964652027,-117.49500127,0.00028493,2]
[359381577,1745964652471,-282.50499873,0.00028493,2]
[359381578,1745964652495,-17.49500127,0.00028493,2]
[359381579,1745964661516,-255.17430411,0.00027397,2]
[359381580,1745964666482,-295.10153438,0.00027396,2]
[359381581,1745964671047,-288.32423163,0.00027373,2]
[359381583,1745964676472,-211.67576837,0.00027373,2]
[359381584,1745964676500,-4.89846562,0.00027396,2]
[359381585,1745964676525,-45.01598202,0.00027397,2]
[359381587,1745964682296,-99.80971387,0.00027397,2]
[359381588,1745964682320,-56.30275005,0.00027397,2]
[359381589,1745964688298,-233.51131837,0.00027397,2]
[359381590,1745964692899,-266.48868163,0.00026416,2]
[359381591,1745964693441,-233.51131837,0.00026416,2]
[359381592,1745964693480,-32.97736326,0.00026416,2]
[359381593,1745964700080,-233.51131837,0.00026416,2]
[359381594,1745964705211,-150.51153262,0.00026416,2]
[359381595,1745964709018,-82.99978575,0.00026416,2]
[359381596,1745964709043,-235.82040687,0.00026416,2]
[359381597,1745964709067,-130.86875378,0.00026416,2]
[359381598,1745964714625,-199.82067607,0.00026416,2]
[359381600,1745964717894,-169.31057015,0.00026416,2]
[359381601,1745964717921,-77.66816528,0.00026416,2]
[359381602,1745964722958,-320.0,0.00026416,2]
[359381603,1745964730092,-300.0,0.00026415,2]
[359381604,1745964735468,-102.33183472,0.00026416,2]
[359381605,1745964735493,-157.22873197,0.00026416,2]
[359381606,1745964735522,-500.0,0.00026416,2]
[359381607,1745964735546,-102.6808342,0.00026416,2]
[359381608,1745964752669,-406.27667642,0.00026416,2]
[359381609,1745964764286,-80.32517762,0.00026416,2]
[359381610,1745964764319,-219.67482238,0.00026416,2]
[359381611,1745964768180,-280.32517762,0.00026416,2]
[359381612,1745964768212,-22.04716908,0.00026416,2]
[359381613,1745964773425,-151.0,0.00026416,2]
[359381614,1745964776701,-326.95283092,0.00026416,2]
[359381615,1745964776728,-54.61014897,0.00026416,2]
[359381616,1745964780459,-175.16702011,0.00026416,2]
[359381617,1745964783296,-300.0,0.00026415,2]
[359381618,1745964783326,-190.03052954,0.00026416,2]
[359381619,1745964789869,-160.0,0.00026416,2]
[359381620,1745964794625,-168.2308609,0.00026416,2]
[359381621,1745964797861,-337.49078274,0.00026416,2]
[359381622,1745964803739,-400.50921726,0.00026416,2]
[359381623,1745964806879,-300.0,0.00026416,2]
[359381624,1745964901877,2082.85759779,0.0002,120]
[359381625,1745964912371,-500.0,0.00026123,2]
[359381626,1745964921325,-472.962603,0.00026123,2]
[359381627,1745964927980,-341.51533644,0.00026123,2]
[359381628,1745964936905,-250.0,0.00026123,2]
[359381629,1745964940127,-228.8212548,0.00026123,2]
[359381630,1745964944335,-244.09880099,0.00026123,2]
[359381631,1745964947686,-439.59090651,0.00026123,2]
[359381632,1745964950460,-243.58451732,0.00026123,2]
[359381633,1745964956832,-175.1107754,0.00026123,2]
[359381634,1745964960574,-188.16379301,0.00026123,2]
[359381635,1745964963309,-379.92621908,0.00026123,2]
[359381636,1745964968111,-251.50308875,0.00026123,2]
[359381637,1745964971835,-236.64766515,0.00026123,2]
[359381638,1745964977856,-441.99256563,0.00026123,2]
[359381639,1745964983056,-158.00743437,0.00026123,2]
[359381640,1745964986236,-503.89405925,0.00026123,2]
[359381641,1745964994086,-300.0,0.00026123,2]
[359381642,1745964996736,-250.0,0.00026123,2]
[359381643,1745965000620,-847.54595682,0.00026123,2]
[359381644,1745965006373,-369.84328708,0.00026123,2]
[359381645,1745965008971,-348.0,0.00026123,2]
[359381646,1745965013060,-187.23134576,0.00026123,2]
[359381647,1745965018824,-454.90126416,0.00026123,2]
[359381648,1745965024498,-163.04468616,0.00026123,2]
[359381649,1745965027067,-2955.21159032,0.00026123,2]
[359381650,1745965027090,-250.0,0.00026316,2]
[359381651,1745965027114,-207.4,0.00026337,2]
[359381652,1745965027138,-1200.0,0.00026415,2]
[359381653,1745965027162,-328.2308609,0.00026507,2]
[359381654,1745965027185,-300.0,0.00026899,2]
[359381655,1745965027213,-2856.06833816,0.000269,7]
[359381656,1745965027238,-497.0733903,0.00027068,4]
[359381657,1745965027262,-217.74313736,0.00027069,5]
[359381658,1745965027285,-1755.27167847,0.00027296,2]
[359381659,1745965027311,-1000.0,0.00027297,2]
[359381660,1745965027334,-10401.24238854,0.00027297,2]
[359381661,1745965027357,-218.63229383,0.00027297,9]
[359381662,1745965027384,-2856.06833793,0.00027383,7]
[359381663,1745965027409,-500.0,0.00027396,2]
[359381664,1745965027435,-500.0,0.00027396,2]
[359381665,1745965027467,-500.0,0.00027396,2]
[359381666,1745965027493,-500.0,0.00027396,2]
[359381667,1745965027530,-500.0,0.00027396,2]
[359381668,1745965027555,-176.58696536,0.00027396,2]
[359381669,1745965027580,-500.0,0.00027396,2]
[359381670,1745965027612,-500.0,0.00027396,2]
[359381671,1745965027638,-296.75710748,0.00027396,2]
[359381672,1745965027665,-500.0,0.00027396,2]
[359381673,1745965027690,-500.0,0.00027396,2]
[359381674,1745965027717,-500.0,0.00027396,2]
[359381675,1745965027743,-500.0,0.00027396,2]
[359381676,1745965027768,-500.0,0.00027396,2]
[359381677,1745965027800,-500.0,0.00027396,2]